[Event "*** Titled Tuesday Blitz"]
[Site "Chess.com"]
[Date "2020.04.21"]
[Round "1"]
[White "inegrepus"]
[Black "Aikiigm"]
[Result "0-1"]
[WhiteElo "2258"]
[BlackElo "2602"]
[TimeControl "180+1"]
[EndTime "10:05:06 PDT"]
[Termination "Aikiigm won by resignation"]

1. d4 {[%clk 0:03:00.8]} 1... Nf6 {[%clk 0:02:20.3]} 2. c4 {[%clk 0:03:00.6]}
2... Nc6 {[%clk 0:02:20.3]} 3. Nf3 {[%clk 0:03:00.1]} 3... e6 {[%clk 0:02:20.1]}
4. Nc3 {[%clk 0:02:59.3]} 4... Bb4 {[%clk 0:02:19.6]} 5. e3 {[%clk 0:02:58.1]}
5... d6 {[%clk 0:02:19.1]} 6. Bd2 {[%clk 0:02:57.7]} 6... O-O {[%clk 0:02:19]}
7. Bd3 {[%clk 0:02:57.7]} 7... Qe7 {[%clk 0:02:18.9]} 8. a3 {[%clk 0:02:55.8]}
8... Bxc3 {[%clk 0:02:18.6]} 9. Bxc3 {[%clk 0:02:56.7]} 9... e5 {[%clk
0:02:18.6]} 10. d5 {[%clk 0:02:55.8]} 10... Nb8 {[%clk 0:02:17.7]} 11. e4 {[%clk
0:02:52.7]} 11... Nbd7 {[%clk 0:02:14.9]} 12. Qe2 {[%clk 0:02:51.3]} 12... a5
{[%clk 0:02:14.3]} 13. b3 {[%clk 0:02:50.8]} 13... Nc5 {[%clk 0:02:13.5]} 14.
Rb1 {[%clk 0:02:50.1]} 14... Bg4 {[%clk 0:02:13.3]} 15. h3 {[%clk 0:02:49.5]}
15... Bh5 {[%clk 0:02:13.4]} 16. g4 {[%clk 0:02:46.4]} 16... Bg6 {[%clk
0:02:12.6]} 17. Nd2 {[%clk 0:02:45.4]} 17... Nxd3+ {[%clk 0:02:12.7]} 18. Qxd3
{[%clk 0:02:45.3]} 18... Nd7 {[%clk 0:02:13.6]} 19. O-O {[%clk 0:02:35.6]} 19...
Nc5 {[%clk 0:02:10.3]} 20. Qe2 {[%clk 0:02:35.2]} 20... c6 {[%clk 0:02:08.7]}
21. Kg2 {[%clk 0:02:34.8]} 21... cxd5 {[%clk 0:02:07.8]} 22. cxd5 {[%clk
0:02:35.7]} 22... Rfc8 {[%clk 0:02:06.9]} 23. Ba1 {[%clk 0:02:30.6]} 23... f6
{[%clk 0:02:05.9]} 24. f3 {[%clk 0:02:30.2]} 24... Be8 {[%clk 0:02:05.1]} 25.
Nc4 {[%clk 0:02:23.4]} 25... Qd8 {[%clk 0:02:04.3]} 26. Ne3 {[%clk 0:02:12.5]}
26... b5 {[%clk 0:02:02.1]} 27. Nf5 {[%clk 0:02:10.8]} 27... b4 {[%clk
0:02:00.5]} 28. a4 {[%clk 0:02:09.4]} 28... Rc7 {[%clk 0:01:59]} 29. Rfc1 {[%clk
0:02:07.7]} 29... Rac8 {[%clk 0:01:59.1]} 30. Qe3 {[%clk 0:02:05.7]} 30... Bg6
{[%clk 0:01:57.3]} 31. f4 {[%clk 0:02:01.8]} 31... exf4 {[%clk 0:01:52.6]} 32.
Qxf4 {[%clk 0:02:02.7]} 32... Bxf5 {[%clk 0:01:52.7]} 33. Qxf5 {[%clk
0:02:02.4]} 33... Qd7 {[%clk 0:01:48.4]} 34. Bd4 {[%clk 0:01:57.9]} 34... Qxf5
{[%clk 0:01:46]} 35. exf5 {[%clk 0:01:58]} 35... Kf7 {[%clk 0:01:37.5]} 36. Rc4
{[%clk 0:01:57.1]} 36... Nd7 {[%clk 0:01:30.9]} 37. Rbc1 {[%clk 0:01:55.4]}
37... Rxc4 {[%clk 0:01:31]} 38. Rxc4 {[%clk 0:01:55.5]} 38... Rxc4 {[%clk
0:01:30.5]} 39. bxc4 {[%clk 0:01:55.5]} 39... Ne5 {[%clk 0:01:25.1]} 40. Bxe5
{[%clk 0:01:53.5]} 40... dxe5 {[%clk 0:01:22.3]} 41. c5 {[%clk 0:01:50.8]} 41...
Ke7 {[%clk 0:01:21.5]} 42. c6 {[%clk 0:01:49.7]} 42... Kd6 {[%clk 0:01:21.2]}
43. h4 {[%clk 0:01:45]} 43... b3 {[%clk 0:01:20.9]} 44. g5 {[%clk 0:01:44.7]}
44... b2 {[%clk 0:01:20.2]} 0-1

[Event "*** Titled Tuesday Blitz"]
[Site "Chess.com"]
[Date "2020.04.21"]
[Round "1"]
[White "jfriedel"]
[Black "northridgehawk"]
[Result "1-0"]
[WhiteElo "2584"]
[BlackElo "2229"]
[TimeControl "180+1"]
[EndTime "10:05:08 PDT"]
[Termination "jfriedel won by checkmate"]

1. d4 {[%clk 0:03:00.9]} 1... Nf6 {[%clk 0:02:59.5]} 2. c4 {[%clk 0:03:00.3]}
2... g6 {[%clk 0:02:59.7]} 3. Nf3 {[%clk 0:02:59.5]} 3... Bg7 {[%clk 0:02:59.4]}
4. g3 {[%clk 0:03:00]} 4... d5 {[%clk 0:02:59.7]} 5. cxd5 {[%clk 0:02:58.9]}
5... Nxd5 {[%clk 0:03:00.6]} 6. Bg2 {[%clk 0:02:59.3]} 6... O-O {[%clk
0:03:00.9]} 7. O-O {[%clk 0:02:59.9]} 7... Nc6 {[%clk 0:03:01.1]} 8. Nc3 {[%clk
0:02:58.6]} 8... Nb6 {[%clk 0:02:59.6]} 9. e3 {[%clk 0:02:58.7]} 9... e5 {[%clk
0:02:56.5]} 10. d5 {[%clk 0:02:58.3]} 10... Na5 {[%clk 0:02:56.4]} 11. e4 {[%clk
0:02:58.7]} 11... c6 {[%clk 0:02:57]} 12. Bg5 {[%clk 0:02:57.3]} 12... f6 {[%clk
0:02:55.1]} 13. Be3 {[%clk 0:02:57.2]} 13... Nac4 {[%clk 0:02:54.2]} 14. Bc5
{[%clk 0:02:46.8]} 14... Re8 {[%clk 0:02:53.4]} 15. b3 {[%clk 0:02:37.4]} 15...
Na5 {[%clk 0:02:47.4]} 16. Rc1 {[%clk 0:02:28.7]} 16... cxd5 {[%clk 0:02:47.5]}
17. Bxb6 {[%clk 0:02:27.8]} 17... axb6 {[%clk 0:02:46.1]} 18. Nxd5 {[%clk
0:02:19.5]} 18... Nc6 {[%clk 0:02:45.3]} 19. h3 {[%clk 0:01:59.4]} 19... Rxa2
{[%clk 0:02:36.8]} 20. Qd3 {[%clk 0:01:55.8]} 20... f5 {[%clk 0:02:21.9]} 21.
Rfd1 {[%clk 0:01:50.3]} 21... Be6 {[%clk 0:02:20.1]} 22. Qb5 {[%clk 0:01:35.3]}
22... Rb2 {[%clk 0:02:13]} 23. Nf4 {[%clk 0:01:27.2]} 23... Qe7 {[%clk 0:02:11]}
24. Nxe6 {[%clk 0:01:26.9]} 24... Qxe6 {[%clk 0:02:11.9]} 25. exf5 {[%clk
0:01:25.6]} 25... gxf5 {[%clk 0:02:08.1]} 26. Ng5 {[%clk 0:01:24.6]} 26... Qg6
{[%clk 0:02:04.7]} 27. Bxc6 {[%clk 0:00:55.3]} 27... bxc6 {[%clk 0:01:58.6]} 28.
Qc4+ {[%clk 0:00:53.8]} 28... Kf8 {[%clk 0:01:57]} 29. Rd7 {[%clk 0:00:53.2]}
29... b5 {[%clk 0:01:31.1]} 30. Nxh7+ {[%clk 0:00:48.8]} 30... Qxh7 {[%clk
0:01:26.7]} 31. Qf7# {[%clk 0:00:49.7]} 1-0

[Event "*** Titled Tuesday Blitz"]
[Site "Chess.com"]
[Date "2020.04.21"]
[Round "1"]
[White "1f3_2g41-0"]
[Black "bilelou"]
[Result "0-1"]
[WhiteElo "2160"]
[BlackElo "2548"]
[TimeControl "180+1"]
[EndTime "10:05:13 PDT"]
[Termination "bilelou won by resignation"]

1. e4 {[%clk 0:03:00.9]} 1... c5 {[%clk 0:02:59.5]} 2. Nf3 {[%clk 0:03:00.6]}
2... Nc6 {[%clk 0:03:00.1]} 3. Bb5 {[%clk 0:03:00]} 3... Nf6 {[%clk 0:02:59.8]}
4. e5 {[%clk 0:02:58.6]} 4... Nd5 {[%clk 0:02:58.5]} 5. O-O {[%clk 0:02:59.2]}
5... Nc7 {[%clk 0:02:58.5]} 6. Bxc6 {[%clk 0:02:56.8]} 6... dxc6 {[%clk
0:02:59.4]} 7. c3 {[%clk 0:02:53.1]} 7... Bg4 {[%clk 0:02:59.2]} 8. d4 {[%clk
0:02:46.5]} 8... Bxf3 {[%clk 0:02:58.9]} 9. Qxf3 {[%clk 0:02:45.4]} 9... cxd4
{[%clk 0:02:58.8]} 10. Rd1 {[%clk 0:02:44.6]} 10... Qd5 {[%clk 0:02:58.3]} 11.
Qg3 {[%clk 0:02:04.9]} 11... Qe4 {[%clk 0:02:57.3]} 12. cxd4 {[%clk 0:01:57.7]}
12... e6 {[%clk 0:02:48.4]} 13. Nc3 {[%clk 0:01:55.6]} 13... Qg6 {[%clk
0:02:48.2]} 14. Qf3 {[%clk 0:01:44.2]} 14... Be7 {[%clk 0:02:45.8]} 15. Bf4
{[%clk 0:01:39]} 15... O-O {[%clk 0:02:45.8]} 16. Rac1 {[%clk 0:01:36.8]} 16...
f6 {[%clk 0:02:45.1]} 17. exf6 {[%clk 0:01:26.5]} 17... Rxf6 {[%clk 0:02:46]}
18. Qe3 {[%clk 0:01:20.7]} 18... Na6 {[%clk 0:02:37.8]} 19. Bg5 {[%clk
0:01:10.7]} 19... Rf7 {[%clk 0:02:18.4]} 20. Bxe7 {[%clk 0:01:09.9]} 20... Rxe7
{[%clk 0:02:19.3]} 21. d5 {[%clk 0:01:10.3]} 21... e5 {[%clk 0:02:07.7]} 22. d6
{[%clk 0:01:06.9]} 22... Rd7 {[%clk 0:02:04.5]} 23. Qxe5 {[%clk 0:01:05.3]}
23... Rad8 {[%clk 0:02:04.8]} 24. Ne4 {[%clk 0:01:02.6]} 24... h6 {[%clk
0:02:04.5]} 25. Rc3 {[%clk 0:00:55.7]} 25... Re8 {[%clk 0:02:03.6]} 26. Nc5
{[%clk 0:00:28.4]} 26... Rxe5 {[%clk 0:01:47.5]} 27. Nxd7 {[%clk 0:00:28.2]}
27... Qxd6 {[%clk 0:01:48.1]} 0-1

[Event "*** Titled Tuesday Blitz"]
[Site "Chess.com"]
[Date "2020.04.21"]
[Round "1"]
[White "Caracternin123"]
[Black "bupunsu01"]
[Result "1-0"]
[WhiteElo "2624"]
[BlackElo "2297"]
[TimeControl "180+1"]
[EndTime "10:05:17 PDT"]
[Termination "Caracternin123 won by resignation"]

1. d4 {[%clk 0:02:59.9]} 1... Nf6 {[%clk 0:02:58.8]} 2. Nf3 {[%clk 0:02:59.6]}
2... g6 {[%clk 0:02:57.9]} 3. Bg5 {[%clk 0:02:58.1]} 3... Bg7 {[%clk 0:02:56.3]}
4. Nbd2 {[%clk 0:02:56.5]} 4... h6 {[%clk 0:02:55.6]} 5. Bh4 {[%clk 0:02:56.3]}
5... O-O {[%clk 0:02:55.4]} 6. c3 {[%clk 0:02:53.8]} 6... d6 {[%clk 0:02:52.8]}
7. e4 {[%clk 0:02:53.6]} 7... b6 {[%clk 0:02:46.9]} 8. Bc4 {[%clk 0:02:52.9]}
8... Bb7 {[%clk 0:02:42.5]} 9. Qe2 {[%clk 0:02:50.9]} 9... d5 {[%clk 0:02:34.3]}
10. exd5 {[%clk 0:02:48]} 10... Bxd5 {[%clk 0:02:33.1]} 11. O-O {[%clk
0:02:39.1]} 11... Bxc4 {[%clk 0:02:27.4]} 12. Nxc4 {[%clk 0:02:36.6]} 12... Nd5
{[%clk 0:02:23.8]} 13. Rfe1 {[%clk 0:02:33.1]} 13... Nc6 {[%clk 0:02:21.2]} 14.
Rad1 {[%clk 0:02:29.6]} 14... Re8 {[%clk 0:02:16.4]} 15. Nce5 {[%clk 0:02:21.8]}
15... Nxe5 {[%clk 0:02:14.7]} 16. dxe5 {[%clk 0:02:21.8]} 16... g5 {[%clk
0:01:27.7]} 17. Bg3 {[%clk 0:02:18.3]} 17... b5 {[%clk 0:01:16.5]} 18. Qxb5
{[%clk 0:02:08.5]} 18... e6 {[%clk 0:01:15.8]} 19. c4 {[%clk 0:01:24.6]} 19...
c6 {[%clk 0:01:13.9]} 20. Qxc6 {[%clk 0:01:18.2]} 20... Rc8 {[%clk 0:01:12.7]}
21. Qb5 {[%clk 0:01:02]} 21... Qb6 {[%clk 0:01:11.6]} 22. Qxb6 {[%clk
0:00:59.1]} 22... Nxb6 {[%clk 0:01:10.6]} 23. b3 {[%clk 0:00:59.4]} 1-0

[Event "*** Titled Tuesday Blitz"]
[Site "Chess.com"]
[Date "2020.04.21"]
[Round "1"]
[White "SaguriGuerra"]
[Black "Juanovic"]
[Result "1-0"]
[WhiteElo "2524"]
[BlackElo "2123"]
[TimeControl "180+1"]
[EndTime "10:05:23 PDT"]
[Termination "SaguriGuerra won by checkmate"]

1. e4 {[%clk 0:03:00.9]} 1... c5 {[%clk 0:02:59.6]} 2. Nf3 {[%clk 0:03:01]} 2...
Nc6 {[%clk 0:02:59.4]} 3. d4 {[%clk 0:03:01.9]} 3... cxd4 {[%clk 0:02:59.6]} 4.
Nxd4 {[%clk 0:03:02.8]} 4... g6 {[%clk 0:02:59.7]} 5. c4 {[%clk 0:03:02.6]} 5...
Nf6 {[%clk 0:02:58.8]} 6. Nc3 {[%clk 0:03:02.2]} 6... Bg7 {[%clk 0:02:58.8]} 7.
Be3 {[%clk 0:03:02]} 7... O-O {[%clk 0:02:59]} 8. Be2 {[%clk 0:02:58.4]} 8... d6
{[%clk 0:02:59.3]} 9. O-O {[%clk 0:02:57.1]} 9... Bd7 {[%clk 0:02:59.8]} 10. h3
{[%clk 0:02:57.1]} 10... Nxd4 {[%clk 0:02:59.9]} 11. Bxd4 {[%clk 0:02:57.5]}
11... Bc6 {[%clk 0:02:59.9]} 12. Qc2 {[%clk 0:02:58.1]} 12... a6 {[%clk
0:02:33.7]} 13. Rad1 {[%clk 0:02:57.6]} 13... Qc7 {[%clk 0:01:58.1]} 14. c5
{[%clk 0:02:51.3]} 14... dxc5 {[%clk 0:01:53.7]} 15. Bxc5 {[%clk 0:02:45.9]}
15... Nxe4 {[%clk 0:01:22.2]} 16. Nxe4 {[%clk 0:02:46.8]} 16... Bxe4 {[%clk
0:01:21.4]} 17. Qxe4 {[%clk 0:02:47.7]} 17... Qxc5 {[%clk 0:01:21.4]} 18. Qxb7
{[%clk 0:02:48.4]} 18... Rab8 {[%clk 0:01:09.2]} 19. Qxa6 {[%clk 0:02:47.7]}
19... Rxb2 {[%clk 0:01:09.1]} 20. Rb1 {[%clk 0:02:43.9]} 20... Qc2 {[%clk
0:00:46.7]} 21. Rxb2 {[%clk 0:02:42.8]} 21... Qxb2 {[%clk 0:00:47.5]} 22. Bf3
{[%clk 0:02:42.8]} 22... Bd4 {[%clk 0:00:41.8]} 23. a4 {[%clk 0:02:41]} 23... e5
{[%clk 0:00:41.7]} 24. Qc4 {[%clk 0:02:34.3]} 24... Kg7 {[%clk 0:00:39.6]} 25.
a5 {[%clk 0:02:33.3]} 25... Qa3 {[%clk 0:00:37.7]} 26. a6 {[%clk 0:02:32.3]}
26... Rb8 {[%clk 0:00:32.8]} 27. Bd5 {[%clk 0:02:29.9]} 27... Qe7 {[%clk
0:00:28.5]} 28. Re1 {[%clk 0:02:24.7]} 28... Qa7 {[%clk 0:00:28.4]} 29. Re2
{[%clk 0:02:22.6]} 29... Rb6 {[%clk 0:00:28]} 30. Bb7 {[%clk 0:02:21.8]} 30...
Rf6 {[%clk 0:00:27.6]} 31. Qc2 {[%clk 0:02:14.2]} 31... h5 {[%clk 0:00:27.5]}
32. g3 {[%clk 0:02:13]} 32... Rxa6 {[%clk 0:00:25.4]} 33. Bxa6 {[%clk
0:02:12.8]} 33... Qxa6 {[%clk 0:00:26.3]} 34. Kg2 {[%clk 0:02:13.5]} 34... Qf6
{[%clk 0:00:26.3]} 35. Qe4 {[%clk 0:02:13.4]} 35... Qd6 {[%clk 0:00:26.2]} 36.
Rc2 {[%clk 0:02:10.4]} 36... f5 {[%clk 0:00:25.8]} 37. Qb7+ {[%clk 0:02:10.3]}
37... Kh6 {[%clk 0:00:25.5]} 38. Rc8 {[%clk 0:02:10.6]} 38... Qf6 {[%clk
0:00:21.7]} 39. h4 {[%clk 0:02:10.6]} 39... f4 {[%clk 0:00:20.8]} 40. Rc6 {[%clk
0:02:08]} 40... f3+ {[%clk 0:00:20.6]} 41. Kh2 {[%clk 0:02:08.4]} 41... Qg7
{[%clk 0:00:18.3]} 42. Rc7 {[%clk 0:02:07.8]} 42... Qf8 {[%clk 0:00:17.8]} 43.
Rh7# {[%clk 0:02:06.7]} 1-0

[Event "*** Titled Tuesday Blitz"]
[Site "Chess.com"]
[Date "2020.04.21"]
[Round "1"]
[White "Alonmindlin"]
[Black "gusmaster2262"]
[Result "1-0"]
[WhiteElo "2706"]
[BlackElo "2368"]
[TimeControl "180+1"]
[EndTime "10:05:26 PDT"]
[Termination "Alonmindlin won on time"]

1. d4 {[%clk 0:03:00.5]} 1... Nf6 {[%clk 0:02:49.3]} 2. c4 {[%clk 0:02:59.7]}
2... g6 {[%clk 0:02:48.5]} 3. Nc3 {[%clk 0:02:59.3]} 3... d5 {[%clk 0:02:47.7]}
4. cxd5 {[%clk 0:02:59.1]} 4... Nxd5 {[%clk 0:02:46.3]} 5. g3 {[%clk 0:03:00]}
5... Bg7 {[%clk 0:02:44.7]} 6. Bg2 {[%clk 0:02:58.8]} 6... Nb6 {[%clk 0:02:33]}
7. Nf3 {[%clk 0:02:58.1]} 7... O-O {[%clk 0:02:26]} 8. O-O {[%clk 0:02:58.2]}
8... Nc6 {[%clk 0:02:23]} 9. Bf4 {[%clk 0:02:58.1]} 9... Be6 {[%clk 0:02:14.2]}
10. Qc1 {[%clk 0:02:57.1]} 10... Nd5 {[%clk 0:01:48.7]} 11. Bh6 {[%clk
0:02:53.7]} 11... Nxc3 {[%clk 0:01:41]} 12. bxc3 {[%clk 0:02:52.8]} 12... Bc4
{[%clk 0:01:30.6]} 13. Bxg7 {[%clk 0:02:52.1]} 13... Kxg7 {[%clk 0:01:30.2]} 14.
Re1 {[%clk 0:02:48.2]} 14... Qd6 {[%clk 0:01:20.8]} 15. Rb1 {[%clk 0:02:43.8]}
15... Rab8 {[%clk 0:01:14.1]} 16. Qb2 {[%clk 0:02:37.5]} 16... e5 {[%clk
0:01:08.8]} 17. e3 {[%clk 0:02:37]} 17... Rfe8 {[%clk 0:01:05.6]} 18. Nd2 {[%clk
0:02:36.5]} 18... Bd3 {[%clk 0:01:02.6]} 19. Ne4 {[%clk 0:02:32.5]} 19... Qe7
{[%clk 0:00:56.4]} 20. Rbd1 {[%clk 0:02:28.3]} 20... Bxe4 {[%clk 0:00:40.8]} 21.
Bxe4 {[%clk 0:02:29.2]} 21... exd4 {[%clk 0:00:39.5]} 22. exd4 {[%clk
0:02:29.7]} 22... Qd6 {[%clk 0:00:28.7]} 23. c4 {[%clk 0:02:26.1]} 23... Kg8
{[%clk 0:00:23.1]} 24. Bd5 {[%clk 0:02:24.2]} 24... Ne7 {[%clk 0:00:17.9]} 25.
Bg2 {[%clk 0:02:19.2]} 25... c6 {[%clk 0:00:15.3]} 26. c5 {[%clk 0:02:15.5]}
26... Qd7 {[%clk 0:00:12.8]} 27. Re5 {[%clk 0:02:10.8]} 27... Nd5 {[%clk
0:00:10.9]} 28. Bxd5 {[%clk 0:02:09.4]} 28... cxd5 {[%clk 0:00:07.3]} 29. Rde1
{[%clk 0:02:07.5]} 29... Rxe5 {[%clk 0:00:06.1]} 30. Rxe5 {[%clk 0:02:08.4]}
30... b6 {[%clk 0:00:04.1]} 31. Qb3 {[%clk 0:02:06.4]} 31... Rd8 {[%clk
0:00:01.5]} 32. cxb6 {[%clk 0:02:06.2]} 1-0

[Event "*** Titled Tuesday Blitz"]
[Site "Chess.com"]
[Date "2020.04.21"]
[Round "1"]
[White "Vusatiuk_Vladimir"]
[Black "KrolPawel92OnTwitch"]
[Result "0-1"]
[WhiteElo "2351"]
[BlackElo "2680"]
[TimeControl "180+1"]
[EndTime "10:05:27 PDT"]
[Termination "KrolPawel92OnTwitch won by resignation"]

1. e4 {[%clk 0:02:50.1]} 1... c5 {[%clk 0:03:00.1]} 2. Nf3 {[%clk 0:02:48.7]}
2... e6 {[%clk 0:03:00.6]} 3. g3 {[%clk 0:02:47.4]} 3... Nc6 {[%clk 0:03:00.2]}
4. Bg2 {[%clk 0:02:46]} 4... Nf6 {[%clk 0:03:00.6]} 5. Nc3 {[%clk 0:02:45.2]}
5... Be7 {[%clk 0:02:54.5]} 6. O-O {[%clk 0:02:45.5]} 6... d6 {[%clk 0:02:54.4]}
7. d3 {[%clk 0:02:45.7]} 7... O-O {[%clk 0:02:54.1]} 8. Nd2 {[%clk 0:02:44.7]}
8... Rb8 {[%clk 0:02:52.7]} 9. f4 {[%clk 0:02:40.7]} 9... Qc7 {[%clk 0:02:52.3]}
10. g4 {[%clk 0:02:37.7]} 10... b5 {[%clk 0:02:50.1]} 11. g5 {[%clk 0:02:36.6]}
11... Nd7 {[%clk 0:02:49.8]} 12. Ne2 {[%clk 0:02:34.2]} 12... Bb7 {[%clk
0:02:42.7]} 13. a4 {[%clk 0:02:28.6]} 13... a6 {[%clk 0:02:39.2]} 14. Qe1 {[%clk
0:02:21.3]} 14... Nd4 {[%clk 0:02:38.5]} 15. Nxd4 {[%clk 0:02:20.4]} 15... cxd4
{[%clk 0:02:39.4]} 16. Nf3 {[%clk 0:01:59.4]} 16... Qxc2 {[%clk 0:02:37.2]} 17.
Nxd4 {[%clk 0:01:52.4]} 17... Qxd3 {[%clk 0:02:36]} 18. Qe3 {[%clk 0:01:43.4]}
18... Qxe3+ {[%clk 0:02:35.2]} 19. Bxe3 {[%clk 0:01:44.3]} 19... b4 {[%clk
0:02:31.4]} 20. f5 {[%clk 0:01:39.8]} 20... e5 {[%clk 0:02:28.7]} 21. Nb3 {[%clk
0:01:36.7]} 21... Rfc8 {[%clk 0:02:24.3]} 22. Rac1 {[%clk 0:01:35.4]} 22... Bc6
{[%clk 0:02:17.5]} 23. a5 {[%clk 0:01:31.3]} 23... Ba4 {[%clk 0:02:17.1]} 24.
Nd2 {[%clk 0:01:31]} 24... Bb5 {[%clk 0:02:16.7]} 25. Rfd1 {[%clk 0:01:29.7]}
25... Nc5 {[%clk 0:02:10.8]} 26. Bxc5 {[%clk 0:01:22.1]} 26... dxc5 {[%clk
0:02:10.4]} 27. Nc4 {[%clk 0:01:21.2]} 27... Bxg5 {[%clk 0:02:10.2]} 28. Nxe5
{[%clk 0:01:03.1]} 28... Bxc1 {[%clk 0:02:09.4]} 29. Rxc1 {[%clk 0:01:04]} 29...
c4 {[%clk 0:02:07.7]} 30. f6 {[%clk 0:01:01.3]} 30... gxf6 {[%clk 0:02:04.3]}
31. Ng4 {[%clk 0:01:00.3]} 31... Kg7 {[%clk 0:02:03.6]} 32. h4 {[%clk
0:00:51.8]} 32... c3 {[%clk 0:02:03.6]} 33. bxc3 {[%clk 0:00:50.6]} 33... bxc3
{[%clk 0:02:01]} 34. h5 {[%clk 0:00:51]} 34... h6 {[%clk 0:01:58.8]} 35. Ne3
{[%clk 0:00:50.3]} 35... Bd3 {[%clk 0:01:57.1]} 36. Bf1 {[%clk 0:00:44.7]} 36...
Rb1 {[%clk 0:01:43]} 37. Rxb1 {[%clk 0:00:40.7]} 37... Bxb1 {[%clk 0:01:43.9]}
38. Bxa6 {[%clk 0:00:38.6]} 38... c2 {[%clk 0:01:44]} 39. Nxc2 {[%clk
0:00:33.7]} 39... Rxc2 {[%clk 0:01:44.9]} 0-1

[Event "*** Titled Tuesday Blitz"]
[Site "Chess.com"]
[Date "2020.04.21"]
[Round "1"]
[White "ItsCheckM8Mate"]
[Black "DanielDardha2005"]
[Result "1-0"]
[WhiteElo "2234"]
[BlackElo "2558"]
[TimeControl "180+1"]
[EndTime "10:05:34 PDT"]
[Termination "ItsCheckM8Mate won by resignation"]

1. e4 {[%clk 0:02:57.4]} 1... c5 {[%clk 0:02:56.7]} 2. Nf3 {[%clk 0:02:56.8]}
2... Nc6 {[%clk 0:02:56.2]} 3. d4 {[%clk 0:02:56.7]} 3... cxd4 {[%clk
0:02:56.2]} 4. Nxd4 {[%clk 0:02:56.7]} 4... Nf6 {[%clk 0:02:53.7]} 5. Nc3 {[%clk
0:02:56.6]} 5... e5 {[%clk 0:02:53.8]} 6. Ndb5 {[%clk 0:02:56.3]} 6... d6 {[%clk
0:02:53.6]} 7. Bg5 {[%clk 0:02:56.1]} 7... a6 {[%clk 0:02:53.1]} 8. Na3 {[%clk
0:02:55.9]} 8... b5 {[%clk 0:02:53.2]} 9. Nd5 {[%clk 0:02:55.8]} 9... Be7 {[%clk
0:02:53.2]} 10. Bxf6 {[%clk 0:02:55.7]} 10... Bxf6 {[%clk 0:02:53.7]} 11. c4
{[%clk 0:02:56.3]} 11... b4 {[%clk 0:02:52.8]} 12. Nc2 {[%clk 0:02:56]} 12...
Bg5 {[%clk 0:02:52.6]} 13. Be2 {[%clk 0:02:49.4]} 13... O-O {[%clk 0:02:51.4]}
14. O-O {[%clk 0:02:48.7]} 14... a5 {[%clk 0:02:50.8]} 15. Qd3 {[%clk
0:02:45.4]} 15... Be6 {[%clk 0:02:49.8]} 16. Rad1 {[%clk 0:02:31.1]} 16... Qb8
{[%clk 0:02:48.8]} 17. b3 {[%clk 0:02:28.1]} 17... Bd8 {[%clk 0:02:45.5]} 18.
Nce3 {[%clk 0:02:16.2]} 18... Bb6 {[%clk 0:02:43.4]} 19. Kh1 {[%clk 0:01:56.5]}
19... Bc5 {[%clk 0:02:41.9]} 20. f4 {[%clk 0:01:50.4]} 20... exf4 {[%clk
0:02:40.7]} 21. Nxf4 {[%clk 0:01:49.5]} 21... Ne5 {[%clk 0:02:40.9]} 22. Qd2
{[%clk 0:01:44.5]} 22... a4 {[%clk 0:02:25.4]} 23. Nf5 {[%clk 0:01:36.6]} 23...
axb3 {[%clk 0:02:16.6]} 24. axb3 {[%clk 0:01:35.2]} 24... g6 {[%clk 0:01:54.1]}
25. Ne7+ {[%clk 0:00:43.7]} 25... Kg7 {[%clk 0:01:47.1]} 26. Nh5+ {[%clk
0:00:38.7]} 26... gxh5 {[%clk 0:01:44.2]} 27. Qg5+ {[%clk 0:00:38.1]} 27... Ng6
{[%clk 0:01:40.2]} 28. Qf6+ {[%clk 0:00:26.3]} 28... Kh6 {[%clk 0:01:39.7]} 29.
Nf5+ {[%clk 0:00:26.2]} 29... Bxf5 {[%clk 0:01:39.4]} 30. Rxf5 {[%clk
0:00:25.3]} 1-0

[Event "*** Titled Tuesday Blitz"]
[Site "Chess.com"]
[Date "2020.04.21"]
[Round "1"]
[White "AnastasiaProtopopova"]
[Black "Maybe00"]
[Result "0-1"]
[WhiteElo "2302"]
[BlackElo "2629"]
[TimeControl "180+1"]
[EndTime "10:05:41 PDT"]
[Termination "Maybe00 won on time"]

1. d4 {[%clk 0:02:59.2]} 1... d5 {[%clk 0:02:59.3]} 2. c4 {[%clk 0:02:59.2]}
2... c6 {[%clk 0:02:59.3]} 3. Nf3 {[%clk 0:02:59.3]} 3... Nf6 {[%clk 0:02:59.2]}
4. Nc3 {[%clk 0:02:59.5]} 4... e6 {[%clk 0:02:59]} 5. Bg5 {[%clk 0:02:57.9]}
5... Nbd7 {[%clk 0:02:57.3]} 6. cxd5 {[%clk 0:02:57.2]} 6... exd5 {[%clk
0:02:57.1]} 7. Qc2 {[%clk 0:02:55.4]} 7... Be7 {[%clk 0:02:56.2]} 8. e3 {[%clk
0:02:53.6]} 8... Nh5 {[%clk 0:02:56.3]} 9. h4 {[%clk 0:02:52.5]} 9... Ndf6
{[%clk 0:02:47.6]} 10. Ne5 {[%clk 0:02:31.5]} 10... h6 {[%clk 0:02:45.8]} 11.
Be2 {[%clk 0:02:28.1]} 11... hxg5 {[%clk 0:02:23.1]} 12. hxg5 {[%clk 0:02:28]}
12... Ne4 {[%clk 0:02:19.5]} 13. Nxe4 {[%clk 0:02:09.8]} 13... dxe4 {[%clk
0:02:15.6]} 14. Rxh5 {[%clk 0:01:58.3]} 14... Rxh5 {[%clk 0:02:13.4]} 15. Bxh5
{[%clk 0:01:59.2]} 15... g6 {[%clk 0:02:12.9]} 16. Nxg6 {[%clk 0:01:52.2]} 16...
fxg6 {[%clk 0:02:12.1]} 17. Bxg6+ {[%clk 0:01:53.1]} 17... Kf8 {[%clk
0:02:00.9]} 18. Qxe4 {[%clk 0:01:46.2]} 18... Qa5+ {[%clk 0:01:59.3]} 19. Kf1
{[%clk 0:01:23.8]} 19... Qxg5 {[%clk 0:01:55.9]} 20. Qf3+ {[%clk 0:00:38.9]}
20... Qf6 {[%clk 0:01:54.5]} 21. Qxf6+ {[%clk 0:00:36.6]} 21... Bxf6 {[%clk
0:01:55.4]} 22. Ke2 {[%clk 0:00:32.8]} 22... Kg7 {[%clk 0:01:54.2]} 23. Be4
{[%clk 0:00:30.7]} 23... Be6 {[%clk 0:01:54.5]} 24. a3 {[%clk 0:00:28.8]} 24...
Rh8 {[%clk 0:01:52.2]} 25. b4 {[%clk 0:00:26.2]} 25... Rh4 {[%clk 0:01:49.8]}
26. Bf3 {[%clk 0:00:17.4]} 26... Bc4+ {[%clk 0:01:49.5]} 27. Kd2 {[%clk
0:00:16]} 27... Rh2 {[%clk 0:01:49.7]} 28. Rc1 {[%clk 0:00:11.1]} 28... Bf7
{[%clk 0:01:49.9]} 29. a4 {[%clk 0:00:08.3]} 29... a6 {[%clk 0:01:49.8]} 30. Rb1
{[%clk 0:00:05.2]} 30... Bg6 {[%clk 0:01:46.5]} 31. e4 {[%clk 0:00:03.1]} 31...
Bxd4 {[%clk 0:01:45.7]} 32. Ke2 {[%clk 0:00:01.9]} 32... Bf7 {[%clk 0:01:45.3]}
0-1